bitfinex-derivatives/quotes_BNBF0:USTF0_20230830
["timestamp","ask_amount","ask_price","bid_price","bid_amount"]
[1693410140218,0.07339336,223.4,223.18,0.81815302]
[1693410144630,0.07339336,223.41,223.18,0.89106768]
[1693410144831,0.07339336,223.41,223.19,0.81815302]
[1693410146125,0.07339336,223.41,223.18,0.81815302]
[1693410146328,0.07339336,223.41,223.19,0.81754572]
[1693410146526,0.07339336,223.41,223.17,0.07291466]
[1693410146728,0.07339336,223.41,223.18,0.81755487]
[1693410148830,0.07339336,223.4,223.18,0.81755487]
[1693410152335,0.07339336,223.4,223.18,0.89046953]
[1693410152527,0.07339336,223.4,223.19,0.81755487]
[1693410152726,0.07339336,223.41,223.19,0.81755487]
[1693410155432,0.07339336,223.4,223.19,0.81755487]
[1693410158341,0.07339336,223.4,223.19,0.89046953]
[1693410158543,0.07339336,223.4,223.2,0.81755487]
[1693410159836,0.07339336,223.41,223.2,0.81755487]
[1693410160039,0.07339336,223.4,223.2,0.81755487]
[1693410160438,0.07339336,223.41,223.2,0.81755487]
[1693410164445,2.44644561,223.55,223.2,0.81755487]
[1693410164648,0.07340569,223.42,223.21,0.81755487]
[1693410164843,0.07340569,223.42,223.2,0.81755487]
[1693410165045,0.07340569,223.42,223.21,0.8166427]
[1693410165245,0.07340569,223.42,223.19,0.07288305]
[1693410165447,0.07340569,223.42,223.2,0.81665473]
[1693410168147,0.07340569,223.42,223.21,0.81665473]
[1693410168550,0.07340569,223.42,223.19,0.07288305]
[1693410168748,0.07340569,223.42,223.2,0.81671744]
[1693410171652,0.07340569,223.42,223.21,0.81671744]
[1693410171848,0.07340569,223.42,223.18,0.07288305]
[1693410172052,0.07340569,223.42,223.19,0.81679408]
[1693410172247,0.07340569,223.42,223.19,0.88967713]
[1693410172449,0.07340569,223.42,223.2,0.81679408]
[1693410172650,0.07340569,223.42,223.19,0.81679408]
[1693410172849,0.07340569,223.42,223.2,0.81679408]
[1693410173050,0.07340569,223.42,223.19,0.88967713]
[1693410173251,0.07340569,223.42,223.2,0.81679408]
[1693410174452,0.07340569,223.42,223.19,0.81679408]
[1693410174653,0.07340569,223.42,223.21,0.81679408]
[1693410174853,0.07340569,223.42,223.18,0.07288305]
[1693410175054,0.07340569,223.42,223.19,0.81706632]
[1693410175253,0.07340569,223.42,223.19,0.88994937]
[1693410175452,0.07340569,223.42,223.2,0.81706632]
[1693410176857,0.07340569,223.42,223.19,0.81706632]
[1693410177057,0.07340569,223.42,223.2,0.81706632]
[1693410177257,0.07340569,223.42,223.19,0.81706632]
[1693410178656,0.07340569,223.41,223.19,0.81706632]
[1693410181459,0.07340569,223.41,223.18,0.88994937]
[1693410181661,0.07340569,223.41,223.19,0.81706632]
[1693410189568,0.07340569,223.4,223.19,0.81706632]
[1693410189767,0.07340569,223.4,223.17,0.07288305]
[1693410190067,0.07340569,223.4,223.18,0.81700552]
[1693410192773,0.07340569,223.4,223.19,0.81700552]
[1693410192974,0.07340569,223.4,223.17,0.81700552]
[1693410193169,0.07340569,223.4,223.18,0.81696262]
[1693410193368,0.07340569,223.4,223.19,0.81696262]
[1693410193667,0.07340569,223.4,223.16,0.07288305]
[1693410193871,0.07340569,223.4,223.17,0.81695425]
[1693410194472,0.07340569,223.41,223.17,0.8898373]
[1693410194674,0.07340569,223.41,222.93,0.97177404]
[1693410194675,0.07340569,223.42,223.18,0.8898373]
[1693410194875,0.07340569,223.42,223.19,0.81695425]
[1693410207680,0.07340569,223.43,223.19,0.8898373]
[1693410207979,0.07340569,223.43,223.2,0.81695425]
[1693410210680,2.44685642,223.56,223.2,0.81695425]
[1693410210872,0.82261417,229.99,214.23,0.81695425]
[1693410211075,0.14674812,223.45,223.19,0.07285339]
[1693410211279,0.07337406,223.43,223.2,0.81695425]
[1693410211973,0.07337406,223.42,223.2,0.81695425]
[1693410212178,0.07337406,223.42,223.21,0.81695425]
[1693410212481,0.07337406,223.42,223.18,0.07285339]
[1693410212784,0.07337406,223.43,223.19,0.88962919]
[1693410213080,0.07337406,223.43,223.2,0.8167758]
[1693410218786,0.07337406,223.43,223.21,0.8167758]
[1693410218981,0.07337406,223.43,223.18,0.07285339]
[1693410218982,0.07337406,223.43,223.19,0.07285339]
[1693410219180,0.07337406,223.43,223.2,0.81715578]
[1693410219381,0.07337406,223.43,223.19,0.81715578]
[1693410219585,0.07337406,223.43,223.2,0.81715578]
[1693410219789,0.07337406,223.43,223.21,0.81715578]
[1693410219987,0.07337406,223.43,223.19,0.81715578]
[1693410220189,0.07337406,223.43,223.2,0.81716071]
[1693410220487,0.07337406,223.43,223.21,0.81716071]
[1693410220689,0.07337406,223.43,223.18,0.07285339]
[1693410220888,0.07337406,223.43,223.19,0.81718322]
[1693410221283,0.07337406,223.43,223.19,0.89003661]
[1693410221489,0.07337406,223.47,223.23,0.07285339]
[1693410221788,2.44580205,223.61,223.23,0.07285339]
[1693410221789,0.07337406,223.48,223.24,0.81718322]
[1693410222185,0.07337406,223.49,223.24,0.81718322]
[1693410222387,0.07337406,223.49,223.25,0.81718322]
[1693410222587,0.07337406,223.49,223.26,0.81718322]
[1693410222788,0.07337406,223.49,223.22,0.07285339]
[1693410222988,0.07337406,223.49,223.23,0.81671513]
[1693410223189,0.07337406,223.5,223.23,0.81671513]
[1693410223390,0.07337406,223.5,223.24,0.81671513]
[1693410223584,0.07337406,223.5,222.97,0.97137865]
[1693410223793,0.07326992,223.5,223.26,0.81671513]
[1693410223991,0.07326992,223.5,223.21,0.07276689]
[1693410224187,0.07326992,223.5,223.22,0.81677868]
[1693410224588,0.07326992,223.5,223.21,0.81677868]
[1693410224793,0.07326992,223.5,223.22,0.81677868]
[1693410224987,0.07326992,223.5,223.23,0.81677868]
[1693410225188,0.07326992,223.51,223.24,0.81677868]
[1693410225391,0.07326992,223.51,223.2,0.07276689]
[1693410225392,0.07326992,223.51,223.21,0.81677868]
[1693410225593,0.07326992,223.51,223.22,0.81677868]
[1693410225894,0.07326992,223.51,223.23,0.81677868]
[1693410226188,0.07326992,223.51,223.24,0.81677868]
[1693410226492,0.07326992,223.51,223.25,0.81677868]
[1693410226686,0.07326992,223.51,223.26,0.81677868]
[1693410226891,0.07326992,223.51,223.2,0.07276689]
[1693410227088,0.07326992,223.51,223.21,0.81674912]
[1693410230395,0.07326992,223.51,223.22,0.81674912]
[1693410230696,0.07326992,223.52,223.23,0.81674912]
[1693410230896,0.07326992,223.51,223.24,0.81674912]
[1693410231091,0.07326992,223.51,223.21,0.81674912]
[1693410231293,0.07326992,223.51,223.2,0.07276689]
[1693410231294,0.07326992,223.52,223.22,0.81674912]
[1693410231490,0.07326992,223.52,223.23,0.81674912]
[1693410231695,0.07326992,223.52,223.24,0.81674912]
[1693410231895,0.07326992,223.52,223.25,0.81674912]
[1693410232096,0.07326992,223.52,223.2,0.81674912]
[1693410232296,0.07326992,223.52,223.21,0.81674912]
[1693410232497,0.07326992,223.52,223.2,0.81674912]
[1693410232699,0.07326992,223.52,223.21,0.81674912]
[1693410232894,0.07326992,223.52,223.22,0.81674912]
[1693410233096,0.07326992,223.52,223.19,0.07276689]
[1693410233097,0.07326992,223.52,223.23,0.81674912]
[1693410233400,0.07326992,223.52,223.24,0.81674912]
[1693410233595,0.07326992,223.52,223.19,0.07276689]
[1693410233596,0.07326992,223.52,223.2,0.81674912]
[1693410233799,0.07326992,223.52,223.21,0.81674912]
[1693410234000,0.07326992,223.52,223.2,0.81674912]
[1693410234197,0.07326992,223.52,223.21,0.81674912]
[1693410234403,0.07326992,223.52,223.2,0.81674912]
[1693410234601,0.07326992,223.52,223.21,0.81674912]
[1693410234794,0.07326992,223.52,223.19,0.07276689]
[1693410234795,0.07326992,223.52,223.2,0.81674912]
[1693410234999,0.07326992,223.52,223.21,0.81674912]
[1693410235301,0.07326992,223.52,223.22,0.81674912]
[1693410235502,0.07326992,223.52,223.23,0.81674912]
[1693410235702,0.07326992,223.52,223.2,0.81674912]
[1693410235903,0.07326992,223.52,223.21,0.81674912]
[1693410236103,0.07326992,223.52,223.2,0.81674912]
[1693410236304,0.07326992,223.52,223.21,0.81674912]
[1693410236496,0.07326992,223.52,223.22,0.81674912]
[1693410236803,0.07326992,223.52,223.23,0.81674912]
[1693410237003,0.07326992,223.52,223.2,0.81674912]
[1693410237302,0.07326992,223.52,223.21,0.81674912]
[1693410237602,0.07326992,223.52,223.22,0.81674912]
[1693410237803,0.07326992,223.52,223.23,0.81674912]
[1693410237998,0.07326992,223.52,223.2,0.81674912]
[1693410238200,0.07326992,223.52,223.21,0.81674912]
[1693410238399,0.07326992,223.52,223.2,0.81674912]
[1693410238601,0.07326992,223.52,223.21,0.81674912]
[1693410238802,0.07326992,223.52,223.2,0.81674912]
[1693410238998,0.07326992,223.52,223.21,0.81674912]
[1693410239304,0.07326992,223.52,223.22,0.81674912]
[1693410239505,0.07326992,223.52,223.23,0.81674912]
[1693410239706,0.07326992,223.52,223.24,0.81674912]
[1693410239906,0.07326992,223.52,223.19,0.07276689]
[1693410239907,0.07326992,223.52,223.25,0.81674912]
[1693410240107,0.07326992,223.52,223.26,0.81674912]
[1693410240308,0.07326992,223.52,223.2,0.81674912]
[1693410240502,0.07326992,223.52,223.21,0.81748159]
[1693410240706,0.07326992,223.52,223.2,0.81748159]
[1693410241006,0.07326992,223.52,223.21,0.81748159]
[1693410241201,0.07326992,223.52,223.2,0.81748159]
[1693410241408,0.07326992,223.52,223.21,0.81748159]
[1693410241604,0.07326992,223.52,223.22,0.81748159]
[1693410241805,0.07326992,223.52,223.23,0.81748159]
[1693410242107,0.07326992,223.52,223.24,0.81748159]
[1693410242304,0.07326992,223.52,223.2,0.81748159]
[1693410242511,0.07326992,223.52,223.21,0.81748159]
[1693410242709,0.07326992,223.52,223.2,0.81748159]
[1693410242907,0.07326992,223.52,223.21,0.81748159]
[1693410243103,0.07326992,223.52,223.22,0.81748159]
[1693410243309,0.07326992,223.52,223.23,0.81748159]
[1693410243513,0.07326992,223.52,223.24,0.81748159]
[1693410243708,0.07326992,223.52,223.2,0.81748159]
[1693410244005,0.07326992,223.52,223.21,0.81748159]
[1693410247213,0.07326992,223.51,223.21,0.81748159]
[1693410248812,0.07326992,223.47,223.21,0.81748159]
[1693410249012,0.07326992,223.46,223.16,0.07276689]
[1693410249212,0.07326992,223.46,223.17,0.81744018]
[1693410249610,0.07326992,223.46,223.16,0.81744018]
[1693410249809,0.07326992,223.46,223.17,0.81744018]
[1693410250010,0.07326992,223.46,223.16,0.81744018]
[1693410250211,0.07326992,223.45,223.17,0.81744018]
[1693410250513,0.07326992,223.46,223.17,0.81744018]
[1693410250713,0.07326992,223.46,223.16,0.81744018]
[1693410250915,0.07326992,223.46,223.17,0.81744018]
[1693410251115,0.07326992,223.46,223.16,0.89020707]
[1693410251310,0.07326992,223.46,223.17,0.81744018]
[1693410251511,0.07326992,223.47,223.2,0.07276689]
[1693410251709,0.07326992,223.51,223.2,0.07276689]
[1693410251908,0.07326992,223.51,223.21,0.89020707]
[1693410252213,0.07326992,223.51,223.22,0.81744018]
[1693410253116,0.07326992,223.51,223.22,0.89020707]
[1693410253315,0.07326992,223.51,223.23,0.81744018]
[1693410254517,0.07326992,223.5,223.23,0.81744018]
[1693410255413,0.07326992,223.5,223.23,0.89020707]
[1693410255718,0.07326992,223.5,223.24,0.81744018]
[1693410255911,0.07326992,223.5,223.23,0.81744018]
[1693410256107,0.07326992,223.49,223.24,0.81744018]
[1693410256315,0.07326992,223.49,223.23,0.81744018]
[1693410256511,0.07326992,223.49,223.24,0.81744018]
[1693410256708,0.07326992,223.49,223.25,0.81744018]
[1693410256913,0.07326992,223.49,223.26,0.81744018]
[1693410257113,0.07326992,223.49,223.22,0.07276689]
[1693410257309,0.07326992,223.49,223.23,0.81677318]
[1693410271832,0.07326992,223.5,223.23,0.81677318]
[1693410274328,0.07326992,223.49,223.23,0.81677318]
[1693410276429,0.07326992,223.5,223.23,0.88954007]
[1693410276634,0.07326992,223.5,223.24,0.81677318]
[1693410277237,0.07326992,223.49,223.23,0.81677318]
[1693410277431,0.07326992,223.49,223.24,0.81677318]
[1693410277638,0.07326992,223.5,223.23,0.88954007]
[1693410277829,0.07326992,223.5,223.24,0.81677318]
[1693410278439,0.07326992,223.5,223.25,0.81677318]
[1693410278738,0.07326992,223.5,223.26,0.81677318]
[1693410279037,0.07326992,223.5,223.27,0.81677318]
[1693410279237,0.07326992,223.5,223.24,0.81677318]
[1693410279436,0.07326992,223.5,223.25,0.81665796]
[1693410279637,0.07326992,223.49,223.26,0.81665796]
[1693410279937,0.07326992,223.49,223.22,0.07276689]
[1693410280136,0.07326992,223.49,223.23,0.816682]
[1693410285438,0.07326992,223.48,223.23,0.88944889]
[1693410285640,0.07326992,223.48,223.24,0.816682]
[1693410286242,0.07326992,223.46,223.25,0.07276689]
[1693410286435,0.07326992,223.46,223.26,0.816682]
[1693410287339,0.07326992,223.46,223.24,0.07276689]
[1693410287535,0.07326992,223.46,223.25,0.8166364]
[1693410288541,0.07326992,223.46,223.25,0.88940329]
[1693410288840,0.07326992,223.46,223.26,0.8166364]
[1693410295845,0.07326992,223.47,223.26,0.8166364]
[1693410296841,0.07326992,223.46,223.26,0.8166364]
[1693410297147,0.07326992,223.47,223.26,0.8166364]
[1693410303549,0.07326992,223.46,223.26,0.8166364]
[1693410303749,0.07326992,223.47,223.26,0.8166364]
[1693410308650,0.07326992,223.46,223.26,0.8166364]
[1693410308852,0.07326992,223.47,223.26,0.8166364]
[1693410310058,0.07326992,223.46,223.26,0.8166364]
[1693410321368,0.07326992,223.47,223.26,0.8166364]
[1693410321864,0.07326992,223.48,223.27,0.07276689]
[1693410322064,0.07326992,223.48,223.28,0.8166364]
[1693410322368,0.07326992,223.48,223.26,0.07276689]
[1693410322665,0.07326992,223.48,223.27,0.81585179]
[1693410323063,0.07326992,223.49,223.27,0.81585179]
[1693410324472,0.07326992,223.49,223.21,0.07276689]
[1693410324473,0.07326992,223.44,223.21,0.07276689]
[1693410324762,0.07326992,223.43,223.2,0.07276689]
[1693410324966,0.07326992,223.43,223.22,0.81664587]
[1693410325163,0.07326992,223.43,223.2,0.07276689]
[1693410325368,0.07326992,223.43,223.17,0.07276689]
[1693410326070,0.07326992,223.43,223.18,0.8167989]
[1693410326269,0.07326992,223.42,223.18,0.8167989]
[1693410326767,0.07326992,223.42,223.19,0.8167989]
[1693410326971,0.07326992,223.44,223.19,0.8167989]
[1693410327367,0.07326992,223.44,223.14,0.07276689]
[1693410327769,0.07326992,223.44,223.15,0.81692491]
[1693410328172,0.07326992,223.45,223.15,0.81692491]
[1693410328772,0.07326992,223.45,223.14,0.8896918]
[1693410329073,0.07326992,223.45,223.15,0.81692491]
[1693410329275,0.07326992,223.46,223.15,0.81692491]
[1693410329477,0.07326992,223.46,223.14,0.81692491]
[1693410329772,0.07326992,223.47,223.16,0.81692491]
[1693410329973,0.07326992,223.47,222.9,0.97022529]
[1693410329974,0.07326992,223.47,223.15,0.8896918]
[1693410330374,0.07326992,223.48,223.15,0.8896918]
[1693410330572,0.07326992,223.48,223.16,0.81692491]
[1693410330773,0.07326992,223.47,223.16,0.81692491]
[1693410330968,0.07326992,223.47,223.15,0.81692491]
[1693410331573,0.07326992,223.47,223.17,0.81692491]
[1693410331776,0.07319801,223.47,223.16,0.81692491]
[1693410332275,0.07319801,223.47,223.17,0.81692491]
[1693410332475,0.07319801,223.47,223.14,0.88960626]
[1693410332675,0.07319801,223.47,223.18,0.81692491]
[1693410332868,0.07319801,223.47,223.19,0.81692491]
[1693410333375,0.07319801,223.47,223.2,0.81692491]
[1693410333576,0.07319801,223.47,223.14,0.81692491]
[1693410333770,0.07319801,223.47,223.15,0.81692491]
[1693410333974,0.07319801,223.47,223.16,0.81692491]
[1693410334170,0.07319801,223.47,223.17,0.81692491]
[1693410334370,0.07319801,223.47,223.18,0.81692491]
[1693410334570,0.07319801,223.48,223.19,0.81692491]
[1693410334774,0.07319801,223.48,223.13,0.07268135]
[1693410334775,0.07319801,223.47,223.2,0.81692491]
[1693410335071,0.07319801,223.48,223.14,0.81692491]
[1693410335275,0.07319801,223.48,223.15,0.81686065]
[1693410335574,0.07319801,223.48,223.16,0.81686065]
[1693410335770,0.07319801,223.48,223.13,0.07268135]
[1693410335771,0.07319801,223.48,223.14,0.81686065]
[1693410335972,0.07319801,223.48,223.15,0.81686065]
[1693410336171,0.07319801,223.48,223.16,0.81686065]
[1693410336377,0.07319801,223.48,223.17,0.81686065]
[1693410336577,0.07319801,223.48,223.13,0.81686065]
[1693410336777,0.07319801,223.48,223.12,0.07268135]
[1693410336778,0.07319801,223.48,223.14,0.81686065]
[1693410337077,0.07319801,223.48,223.15,0.81686065]
[1693410337279,0.07319801,223.48,223.13,0.81686065]
[1693410337478,0.07319801,223.48,223.16,0.81686065]
[1693410337779,0.07319801,223.48,223.17,0.81686065]
[1693410338174,0.07319801,223.48,223.18,0.81686065]
[1693410338377,0.07319801,223.48,223.13,0.81686065]
[1693410338579,0.07319801,223.48,223.14,0.81686065]
[1693410338780,0.07319801,223.48,223.13,0.81686065]
[1693410338974,0.07319801,223.48,223.14,0.81686065]
[1693410339179,0.07319801,223.48,223.13,0.81686065]
[1693410339981,0.07319801,223.48,223.12,0.81686065]
[1693410340279,0.07319801,223.48,223.13,0.81686065]
[1693410340679,0.07319801,223.48,223.14,0.81686065]
[1693410340880,0.07319801,223.47,223.12,0.81686065]
[1693410341076,0.07319801,223.47,223.13,0.81686065]
[1693410341272,0.07319801,223.47,223.12,0.81686065]
[1693410341474,0.07319801,223.47,223.14,0.81686065]
[1693410341678,0.07319801,223.47,223.15,0.81686065]
[1693410341874,0.07319801,223.47,223.11,0.81686065]
[1693410342280,0.07319801,223.48,223.16,0.81686065]
[1693410342476,0.07319801,223.48,223.12,0.81686065]
[1693410342677,0.07319801,223.47,223.13,0.81686065]
[1693410342875,0.07319801,223.47,223.14,0.81686065]
[1693410343080,0.07319801,223.48,223.11,0.81686065]
[1693410343280,0.07319801,223.48,223.15,0.81686065]
[1693410343481,0.07319801,223.48,223.12,0.81686065]
[1693410343781,0.07319801,223.48,223.13,0.81686065]
[1693410344081,0.07319801,223.48,223.14,0.81686065]
[1693410344379,0.07319801,223.48,223.15,0.81686065]
[1693410344579,0.07319801,223.48,223.16,0.81686065]
[1693410344778,0.07319801,223.48,223.17,0.81686065]
[1693410344974,0.07319801,223.48,223.18,0.81686065]
[1693410345174,0.07319801,223.48,223.19,0.81686065]
[1693410345381,0.07319801,223.48,223.1,0.07268135]
[1693410345580,0.07319801,223.48,223.11,0.81697523]
[1693410346783,0.07319801,223.47,223.11,0.81697523]
[1693410348880,0.07319801,223.47,223.12,0.81697523]
[1693410349078,0.07319801,223.47,223.1,0.88965658]
[1693410349277,0.07319801,223.47,223.11,0.81697523]
[1693410351787,0.07319801,223.45,223.11,0.81697523]
[1693410351988,0.07319801,223.4,223.12,0.81697523]
[1693410352184,0.07319801,223.4,223.03,0.07268135]
[1693410352385,0.07319801,223.4,223.04,0.81853109]
[1693410352983,0.07319801,223.41,223.04,0.81853109]
[1693410353181,0.07319801,223.41,223.03,0.81853109]
[1693410353383,0.07319801,223.41,223.02,0.07268135]
[1693410353384,0.07319801,223.41,223.04,0.81853109]
[1693410353586,0.07319801,223.41,223.03,0.81853109]
[1693410353784,0.07319801,223.41,223.04,0.81853109]
[1693410353984,0.07319801,223.42,223.03,0.81853109]
[1693410354186,0.07319801,223.41,223.04,0.81853109]
[1693410354486,0.07319801,223.41,223.05,0.81853109]
[1693410354683,0.07319801,223.41,223.02,0.81853109]
[1693410354887,0.07319801,223.41,223.03,0.81853109]
[1693410355089,0.07319801,223.42,223.02,0.81853109]
[1693410355290,0.07319801,223.42,223.03,0.81853109]
[1693410355490,0.07319801,223.42,223.04,0.81853109]
[1693410355684,0.07319801,223.42,223.05,0.81853109]
[1693410355885,0.07319801,223.42,223.06,0.81853109]
[1693410356191,0.07319801,223.42,223.07,0.81853109]
[1693410356492,0.07319801,223.42,223.08,0.81853109]
[1693410356693,0.07319801,223.42,223.09,0.81853109]
[1693410356887,0.07319801,223.42,223.1,0.81853109]
[1693410357084,0.07319801,223.42,223.11,0.81853109]
[1693410357286,0.07319801,223.42,223.01,0.07268135]
[1693410357491,0.07319801,223.42,223.02,0.81896635]
[1693410357687,2.43993395,223.55,223.02,0.81896635]
[1693410357688,0.07319801,223.41,223.02,0.81896635]
[1693410357892,0.07319801,223.4,223.01,0.81896635]
[1693410358988,0.07319801,223.39,223.01,0.8916477]
[1693410359194,0.07319801,223.39,223.02,0.81896635]
[1693410359992,0.07319801,223.4,223.02,0.81896635]
[1693410360197,0.07319801,223.4,223.03,0.81896635]
[1693410360398,0.07319801,223.4,223.01,0.81896635]
[1693410360591,0.07319801,223.4,223.02,0.81896635]
[1693410360896,0.07319801,223.4,223.01,0.81896635]
[1693410361096,0.07319801,223.4,223.02,0.81896635]
[1693410361296,0.07319801,223.4,223.01,0.81896635]
[1693410361490,0.07319801,223.4,223.02,0.81896635]
[1693410361694,0.07319801,223.4,223.03,0.81896635]
[1693410361891,0.07319801,223.39,223.01,0.81896635]
[1693410362191,0.14639603,223.42,223.02,0.81896635]
[1693410362192,0.07319801,223.4,223.02,0.81896635]
[1693410362496,0.07319801,223.4,222.99,0.07268135]
[1693410362497,0.07319801,223.4,223.03,0.81896635]
[1693410362796,0.07319801,223.4,223.04,0.81896635]
[1693410362996,0.07319801,223.4,223.05,0.81896635]
[1693410363196,0.07319801,223.4,222.99,0.81896635]
[1693410363397,0.07319801,223.39,223.06,0.81896635]
[1693410363595,0.14639603,223.41,222.91,0.1453627]
[1693410363596,0.07319801,223.36,222.91,0.07268135]
[1693410363790,0.07319801,223.36,222.85,0.1453627]
[1693410363791,0.07319801,223.35,222.92,0.82014593]
[1693410364397,0.07319801,223.35,222.91,0.82014593]
[1693410364599,0.07319801,223.35,222.93,0.82014593]
[1693410365097,0.07319801,223.35,222.92,0.82014593]
[1693410365293,0.07319801,223.35,222.94,0.82014593]
[1693410365491,0.14639603,223.37,222.94,0.82014593]
[1693410365492,0.07319801,223.37,222.94,0.82014593]
[1693410365693,0.82331154,223.36,222.95,0.82014593]
[1693410366096,0.82331154,223.36,222.89,0.82014593]
[1693410366499,0.82331154,223.36,222.96,0.82014593]
[1693410366703,0.82331154,223.36,222.9,0.82014593]
[1693410366902,0.82331154,223.37,222.9,0.82014593]
[1693410367199,0.82331154,223.37,222.97,0.82014593]
[1693410367399,0.82331154,223.37,222.91,0.82014593]
[1693410367797,0.82331154,223.37,222.92,0.82014593]
[1693410368299,0.82331154,223.37,222.88,0.82014593]
[1693410368501,0.07319801,223.38,222.89,0.82014593]
[1693410368502,0.82331154,223.38,222.89,0.82014593]
[1693410368697,0.07319801,223.39,222.87,0.82014593]
[1693410368698,0.82331154,223.36,222.87,0.82014593]
[1693410368899,0.82331154,223.37,222.9,0.82014593]
[1693410369095,0.82331154,223.35,222.87,0.82014593]
[1693410369300,0.07319801,223.4,222.87,0.82014593]
[1693410369501,0.82331401,223.39,222.87,0.82014593]
[1693410369695,0.82331401,223.39,222.88,0.82014593]
[1693410370203,0.82331401,223.39,222.89,0.82014593]
[1693410370604,0.82331401,223.39,222.86,0.82014593]
[1693410370803,0.89651202,223.39,222.87,0.82014593]
[1693410370998,0.89651202,223.39,222.88,0.82014593]
[1693410371198,0.82331401,223.38,222.89,0.82014593]
[1693410371503,0.82331401,223.38,222.85,0.82014593]
[1693410371696,0.82331401,223.37,222.85,0.82014593]
[1693410371997,0.82331401,223.36,222.9,0.82014593]
[1693410372200,0.82331401,223.36,222.91,0.82014593]
[1693410372402,0.82331401,223.39,222.85,0.82014593]
[1693410372602,0.82331401,223.35,222.92,0.82014593]
[1693410372903,0.82331401,223.34,222.84,0.82014593]
[1693410373103,0.82331401,223.34,222.93,0.82014593]
[1693410373298,0.82331401,223.39,222.85,0.82014593]
[1693410373500,0.82332585,223.38,222.94,0.82014593]
[1693410373700,0.82332585,223.38,222.95,0.82014593]
[1693410373904,0.82332585,223.39,222.95,0.82014593]
[1693410374105,0.82332585,223.37,222.83,0.89282728]
[1693410374399,0.97597358,223.48,222.83,0.89282728]
[1693410374400,0.82332585,223.36,222.96,0.82014593]
[1693410374608,0.82332585,223.4,222.96,0.82014593]
[1693410374805,0.07319801,223.41,222.97,0.82014593]
[1693410374806,0.82332585,223.39,222.97,0.82014593]
[1693410375000,0.82332585,223.39,222.84,0.07268135]
[1693410375001,0.82332585,223.4,222.98,0.82014593]
[1693410375202,0.82332585,223.38,222.85,0.82014593]
[1693410375404,0.07319801,223.41,222.85,0.82014593]
[1693410375405,0.82332585,223.37,222.85,0.82014593]
[1693410375607,0.82332585,223.36,222.85,0.82014593]
[1693410375905,0.82332585,223.35,222.85,0.82014593]
[1693410376205,0.07319801,223.41,222.85,0.82014593]
[1693410376406,0.82329022,223.4,222.85,0.82014593]
[1693410376608,0.82329022,223.4,222.85,0.89282728]
[1693410376808,0.82329022,223.4,222.86,0.82014593]
[1693410378310,0.89648823,223.4,222.86,0.82014593]
[1693410378511,0.82329022,223.39,222.86,0.82014593]
[1693410379010,0.82329022,223.39,222.86,0.89282728]
[1693410379211,0.89648823,223.4,222.87,0.82014593]
[1693410379410,0.82329022,223.39,222.87,0.82014593]
[1693410380211,0.89648823,223.39,222.87,0.89282728]
[1693410380406,0.89648823,223.38,222.88,0.82014593]
[1693410380611,0.82329022,223.37,222.89,0.82014593]
[1693410380808,0.82329022,223.37,222.87,0.82014593]
[1693410381007,0.82329022,223.37,222.88,0.82014593]
[1693410381211,0.82329022,223.38,222.87,0.82014593]
[1693410381515,0.82329022,223.37,222.88,0.82014593]
[1693410381712,0.82329022,223.36,222.87,0.82014593]
[1693410381913,0.82329022,223.38,222.88,0.82014593]
[1693410382109,0.82329022,223.37,222.89,0.82014593]
[1693410382313,0.82329022,223.37,222.88,0.82014593]
[1693410382610,0.82329022,223.37,222.9,0.82014593]
[1693410382814,0.82329022,223.37,222.89,0.82014593]
[1693410383007,0.82329022,223.37,222.9,0.82014593]
[1693410383208,0.89648823,223.37,222.88,0.89282728]
[1693410383408,0.82329022,223.36,222.89,0.82014593]
[1693410384414,0.82329022,223.36,222.89,0.89282728]
[1693410384616,0.82329022,223.36,222.9,0.82014593]
[1693410384815,0.89648823,223.36,222.9,0.82014593]
[1693410385018,0.89648823,223.35,222.9,0.89282728]
[1693410385317,0.07319801,223.35,222.91,0.82014593]
[1693410385518,0.07319801,223.34,222.91,0.82014593]
[1693410385710,0.07319801,223.35,222.91,0.82014593]
[1693410385909,0.07319801,223.34,222.91,0.82014593]
[1693410386110,0.07319801,223.32,222.92,0.07268135]
[1693410386310,0.07319801,223.32,222.93,0.82014593]
[1693410386713,0.07319801,223.31,222.92,0.82014593]
[1693410386908,0.07319801,223.31,222.91,0.07268135]
[1693410386909,0.07319801,223.31,222.93,0.82014593]
[1693410387215,0.07319801,223.31,222.91,0.07268135]
[1693410387216,0.07319801,223.31,222.94,0.82014593]
[1693410387416,0.07319801,223.31,222.95,0.82014593]
[1693410387715,0.07319801,223.31,222.96,0.82014593]
[1693410387917,0.07319801,223.31,222.97,0.82014593]
[1693410388215,0.07319801,223.31,222.98,0.82014593]
[1693410388417,0.07319801,223.31,222.92,0.89282728]
[1693410388615,0.07319801,223.32,222.93,0.82014593]
[1693410389215,0.07319801,223.31,222.93,0.82014593]
[1693410390211,0.07319801,223.3,222.93,0.89282728]
[1693410390615,0.07319801,223.3,222.94,0.82014593]
[1693410390915,0.07319801,223.3,222.94,0.89282728]
[1693410391315,0.07319801,223.3,222.95,0.82014593]
[1693410392320,0.07319801,223.29,222.95,0.89282728]
[1693410392518,0.07319801,223.29,222.96,0.82014593]
[1693410393317,0.07319801,223.28,222.96,0.89282728]
[1693410393518,0.07319801,223.28,222.97,0.89282728]